[Event "Titled Tuesday Blitz January 03 Early 2023"]
[White "Donchenko, Alexander"]
[Black "Khumalo, Keith"]
[WhiteFideId "24603295"]
[BlackFideId "14319470"]
[WhiteElo "2669"]
[BlackElo "2099"]
[Result "1-0"]
[Round "07"]
[TimeControl "180+2"]
[Date "2023.01.03"]
[WhiteClock "0:01:05"]
[BlackClock "0:00:41"]

1. Nf3 {[%clk 0:03:00]}  c5 {[%clk 0:02:58]} 2. c4 {[%clk 0:03:00]}  g6 {[%clk 0:02:57]} 3. d4 {[%clk 0:03:00]}  cxd4 {[%clk 0:02:57]} 4. Nxd4 {[%clk 0:03:00]}  Nc6 {[%clk 0:02:57]} 5. e4 {[%clk 0:03:00]}  Nf6 {[%clk 0:02:58]} 6. Nc3 {[%clk 0:03:00]}  Nxd4 {[%clk 0:02:58]} 7. Qxd4 {[%clk 0:03:00]}  d6 {[%clk 0:02:59]} 8. Bg5 {[%clk 0:02:59]}  Bg7 {[%clk 0:03:00]} 9. Be2 {[%clk 0:03:00]}  O-O {[%clk 0:03:00]} 10. Qd2 {[%clk 0:03:00]}  a5 {[%clk 0:03:01]} 11. O-O {[%clk 0:03:00]}  a4 {[%clk 0:03:02]} 12. Rac1 {[%clk 0:02:58]}  Qa5 {[%clk 0:03:02]} 13. Rfd1 {[%clk 0:02:57]}  Be6 {[%clk 0:03:01]} 14. Bxf6 {[%clk 0:02:45]}  Bxf6 {[%clk 0:03:00]} 15. Nd5 {[%clk 0:02:44]}  Bxd5 {[%clk 0:03:00]} 16. cxd5 {[%clk 0:02:40]}  Qxd2 {[%clk 0:02:57]} 17. Rxd2 {[%clk 0:02:41]}  Rfc8 {[%clk 0:02:56]} 18. Rdc2 {[%clk 0:02:40]}  Rxc2 {[%clk 0:02:56]} 19. Rxc2 {[%clk 0:02:41]}  a3 {[%clk 0:02:53]} 20. b3 {[%clk 0:02:37]}  b6 {[%clk 0:02:53]} 21. Rc4 {[%clk 0:02:30]}  g5 {[%clk 0:02:49]} 22. Kf1 {[%clk 0:02:27]}  Ra5 {[%clk 0:02:45]} 23. b4 {[%clk 0:02:07]}  Ra4 {[%clk 0:02:37]} 24. Bd1 {[%clk 0:02:04]}  Ra7 {[%clk 0:02:29]} 25. Ke2 {[%clk 0:02:02]}  Be5 {[%clk 0:02:26]} 26. g3 {[%clk 0:02:01]}  g4 {[%clk 0:02:25]} 27. Kf1 {[%clk 0:01:57]}  h5 {[%clk 0:02:24]} 28. Kg2 {[%clk 0:01:51]}  Kg7 {[%clk 0:02:23]} 29. h3 {[%clk 0:01:51]}  gxh3+ {[%clk 0:02:23]} 30. Kxh3 {[%clk 0:01:52]}  Kg6 {[%clk 0:02:23]} 31. f4 {[%clk 0:01:52]}  Bb2 {[%clk 0:02:22]} 32. Bc2 {[%clk 0:01:49]}  Kh6 {[%clk 0:02:17]} 33. Rc8 {[%clk 0:01:48]}  Rb7 {[%clk 0:01:54]} 34. Kg2 {[%clk 0:01:48]}  Kg7 {[%clk 0:01:53]} 35. Kf3 {[%clk 0:01:47]}  e6 {[%clk 0:01:50]} 36. dxe6 {[%clk 0:01:37]}  fxe6 {[%clk 0:01:50]} 37. Rc6 {[%clk 0:01:38]}  d5 {[%clk 0:01:41]} 38. Rxe6 {[%clk 0:01:36]}  dxe4+ {[%clk 0:01:42]} 39. Bxe4 {[%clk 0:01:31]}  Rc7 {[%clk 0:01:23]} 40. Rg6+ {[%clk 0:01:31]}  Kf7 {[%clk 0:01:22]} 41. Rxb6 {[%clk 0:01:31]}  Rc3+ {[%clk 0:01:23]} 42. Kg2 {[%clk 0:01:31]}  h4 {[%clk 0:01:21]} 43. gxh4 {[%clk 0:01:28]}  Bc1 {[%clk 0:01:21]} 44. f5 {[%clk 0:01:20]}  Bf4 {[%clk 0:01:17]} 45. b5 {[%clk 0:01:16]}  Rg3+ {[%clk 0:01:15]} 46. Kf2 {[%clk 0:01:15]}  Rh3 {[%clk 0:01:09]} 47. Bd5+ {[%clk 0:01:15]}  Ke8 {[%clk 0:01:05]} 48. f6 {[%clk 0:01:12]}  Rxh4 {[%clk 0:00:54]} 49. f7+ {[%clk 0:01:12]}  Kf8 {[%clk 0:00:54]} 50. Rg6 {[%clk 0:01:11]}  Bh6 {[%clk 0:00:47]} 51. b6 {[%clk 0:01:10]}  Bg7 {[%clk 0:00:46]} 52. b7 {[%clk 0:01:08]}  Rb4 {[%clk 0:00:45]} 53. Ra6 {[%clk 0:01:06]}  Ke7 {[%clk 0:00:41]} 54. Ra8 {[%clk 0:01:05]} 1-0


[Site "https://www.chess.com"]

[Event "Titled Tuesday Blitz January 03 Early 2023"]
[White "Nigmatov, Ortik"]
[Black "Atakhan, Abtin"]
[WhiteFideId "14202131"]
[BlackFideId "22502203"]
[WhiteElo "2438"]
[BlackElo "2422"]
[Result "0-1"]
[Round "07"]
[TimeControl "180+2"]
[Date "2023.01.03"]
[WhiteClock "0:00:49"]
[BlackClock "0:00:09"]

1. c4 {[%clk 0:03:00]}  Nf6 {[%clk 0:02:59]} 2. Nc3 {[%clk 0:02:58]}  Nc6 {[%clk 0:02:56]} 3. Nf3 {[%clk 0:02:57]}  e5 {[%clk 0:02:42]} 4. e4 {[%clk 0:02:57]}  Bb4 {[%clk 0:02:33]} 5. d3 {[%clk 0:02:57]}  d6 {[%clk 0:02:31]} 6. Bd2 {[%clk 0:02:56]}  Nd7 {[%clk 0:02:27]} 7. g3 {[%clk 0:02:55]}  Nf8 {[%clk 0:02:27]} 8. Bg2 {[%clk 0:02:54]}  Ne6 {[%clk 0:02:21]} 9. a3 {[%clk 0:02:53]}  Bc5 {[%clk 0:02:16]} 10. b4 {[%clk 0:02:53]}  Bb6 {[%clk 0:02:16]} 11. Nd5 {[%clk 0:02:51]}  Ncd4 {[%clk 0:02:16]} 12. Nh4 {[%clk 0:02:47]}  c6 {[%clk 0:02:08]} 13. Nxb6 {[%clk 0:02:46]}  axb6 {[%clk 0:02:09]} 14. O-O {[%clk 0:02:46]}  O-O {[%clk 0:01:59]} 15. a4 {[%clk 0:02:43]}  Bd7 {[%clk 0:01:49]} 16. Kh1 {[%clk 0:02:43]}  Qc7 {[%clk 0:01:38]} 17. f4 {[%clk 0:02:42]}  f6 {[%clk 0:01:27]} 18. Be3 {[%clk 0:02:36]}  Ra7 {[%clk 0:01:21]} 19. Ra2 {[%clk 0:02:17]}  Rfa8 {[%clk 0:01:17]} 20. Bh3 {[%clk 0:02:09]}  Nd8 {[%clk 0:01:16]} 21. Nf5 {[%clk 0:02:07]}  Bxf5 {[%clk 0:01:15]} 22. exf5 {[%clk 0:02:07]}  Nf7 {[%clk 0:01:13]} 23. Bxd4 {[%clk 0:01:58]}  exd4 {[%clk 0:01:13]} 24. Re1 {[%clk 0:01:59]}  d5 {[%clk 0:00:57]} 25. Rae2 {[%clk 0:01:54]}  Qd7 {[%clk 0:00:51]} 26. c5 {[%clk 0:01:53]}  bxc5 {[%clk 0:00:51]} 27. bxc5 {[%clk 0:01:54]}  Kf8 {[%clk 0:00:45]} 28. Re6 {[%clk 0:01:52]}  Rxa4 {[%clk 0:00:42]} 29. Qh5 {[%clk 0:01:51]}  Nh6 {[%clk 0:00:40]} 30. g4 {[%clk 0:01:32]}  Ra1 {[%clk 0:00:38]} 31. g5 {[%clk 0:01:32]}  Rxe1+ {[%clk 0:00:30]} 32. Rxe1 {[%clk 0:01:31]}  Ng8 {[%clk 0:00:28]} 33. Qxh7 {[%clk 0:01:29]}  Re8 {[%clk 0:00:27]} 34. Rg1 {[%clk 0:01:27]}  Re3 {[%clk 0:00:23]} 35. gxf6 {[%clk 0:01:23]}  Nxf6 {[%clk 0:00:24]} 36. Qh8+ {[%clk 0:01:23]}  Ng8 {[%clk 0:00:25]} 37. f6 {[%clk 0:01:24]}  Rxh3 {[%clk 0:00:20]} 38. Rxg7 {[%clk 0:01:01]}  Rxh8 {[%clk 0:00:17]} 39. Rxd7 {[%clk 0:01:02]}  Nxf6 {[%clk 0:00:16]} 40. Rxb7 {[%clk 0:01:02]}  Rh3 {[%clk 0:00:16]} 41. Rc7 {[%clk 0:01:01]}  Rxd3 {[%clk 0:00:16]} 42. Rxc6 {[%clk 0:01:02]}  Ne4 {[%clk 0:00:16]} 43. Rc8+ {[%clk 0:00:55]}  Ke7 {[%clk 0:00:16]} 44. c6 {[%clk 0:00:56]}  Rc3 {[%clk 0:00:14]} 45. c7 {[%clk 0:00:54]}  d3 {[%clk 0:00:12]} 46. Ra8 {[%clk 0:00:48]}  Rxc7 {[%clk 0:00:10]} 47. Kg2 {[%clk 0:00:49]}  d2 {[%clk 0:00:09]} 0-1


[Site "https://www.chess.com"]

[Event "Titled Tuesday Blitz January 03 Early 2023"]
[White "Atanasov, Anthony"]
[Black "Kilic, Eray"]
[WhiteFideId "2623897"]
[BlackFideId "44517173"]
[WhiteElo "2368"]
[BlackElo "2414"]
[Result "1-0"]
[Round "07"]
[TimeControl "180+2"]
[Date "2023.01.03"]
[WhiteClock "0:00:03"]
[BlackClock "0:00:05"]

1. e4 {[%clk 0:03:00]}  c5 {[%clk 0:03:00]} 2. Nf3 {[%clk 0:02:59]}  d6 {[%clk 0:03:00]} 3. d4 {[%clk 0:02:59]}  cxd4 {[%clk 0:03:01]} 4. Nxd4 {[%clk 0:03:00]}  Nf6 {[%clk 0:03:02]} 5. Nc3 {[%clk 0:03:00]}  a6 {[%clk 0:03:02]} 6. Nb3 {[%clk 0:02:48]}  e5 {[%clk 0:02:57]} 7. Bg5 {[%clk 0:02:47]}  Be7 {[%clk 0:02:57]} 8. Qd3 {[%clk 0:02:34]}  Nbd7 {[%clk 0:02:53]} 9. O-O-O {[%clk 0:02:33]}  h6 {[%clk 0:02:52]} 10. Bh4 {[%clk 0:02:30]}  O-O {[%clk 0:02:51]} 11. f3 {[%clk 0:02:16]}  Qc7 {[%clk 0:02:48]} 12. Bf2 {[%clk 0:02:07]}  b5 {[%clk 0:02:46]} 13. g4 {[%clk 0:02:03]}  Bb7 {[%clk 0:02:42]} 14. h4 {[%clk 0:02:01]}  Nc5 {[%clk 0:02:26]} 15. Qd2 {[%clk 0:02:00]}  Nxb3+ {[%clk 0:02:24]} 16. axb3 {[%clk 0:02:01]}  d5 {[%clk 0:01:31]} 17. exd5 {[%clk 0:01:20]}  Rfd8 {[%clk 0:01:31]} 18. Bd3 {[%clk 0:01:02]}  Nxd5 {[%clk 0:01:22]} 19. Nxd5 {[%clk 0:01:00]}  Bxd5 {[%clk 0:01:20]} 20. Kb1 {[%clk 0:00:58]}  Bxf3 {[%clk 0:01:12]} 21. Qe3 {[%clk 0:00:52]}  Bxd1 {[%clk 0:01:05]} 22. Rxd1 {[%clk 0:00:53]}  Qc6 {[%clk 0:00:36]} 23. Ka2 {[%clk 0:00:37]}  Rac8 {[%clk 0:00:30]} 24. Qxe5 {[%clk 0:00:18]}  Bf6 {[%clk 0:00:22]} 25. Qf5 {[%clk 0:00:19]}  g6 {[%clk 0:00:22]} 26. Qf4 {[%clk 0:00:19]}  Qd6 {[%clk 0:00:19]} 27. Qxh6 {[%clk 0:00:17]}  Bg7 {[%clk 0:00:20]} 28. Qg5 {[%clk 0:00:12]}  Qf6 {[%clk 0:00:18]} 29. Qxf6 {[%clk 0:00:10]}  Bxf6 {[%clk 0:00:19]} 30. h5 {[%clk 0:00:09]}  Kg7 {[%clk 0:00:18]} 31. Rf1 {[%clk 0:00:05]}  Be5 {[%clk 0:00:17]} 32. Be3 {[%clk 0:00:04]}  Re8 {[%clk 0:00:12]} 33. h6+ {[%clk 0:00:03]}  Kg8 {[%clk 0:00:12]} 34. g5 {[%clk 0:00:02]}  Rc7 {[%clk 0:00:12]} 35. Bd2 {[%clk 0:00:02]}  Kh7 {[%clk 0:00:12]} 36. Rf3 {[%clk 0:00:02]}  Rd7 {[%clk 0:00:12]} 37. Bb4 {[%clk 0:00:02]}  Rc8 {[%clk 0:00:10]} 38. Bd2 {[%clk 0:00:02]}  Bd6 {[%clk 0:00:10]} 39. Bc1 {[%clk 0:00:02]}  Rf8 {[%clk 0:00:10]} 40. Bd2 {[%clk 0:00:03]}  Be7 {[%clk 0:00:10]} 41. Rf2 {[%clk 0:00:02]}  f6 {[%clk 0:00:11]} 42. gxf6 {[%clk 0:00:02]}  Rxf6 {[%clk 0:00:12]} 43. Rg2 {[%clk 0:00:03]}  Rfd6 {[%clk 0:00:12]} 44. Be3 {[%clk 0:00:03]}  Bf8 {[%clk 0:00:12]} 45. Bf4 {[%clk 0:00:03]}  Rf6 {[%clk 0:00:12]} 46. Be5 {[%clk 0:00:03]}  Re6 {[%clk 0:00:12]} 47. Bf4 {[%clk 0:00:03]}  Rf7 {[%clk 0:00:10]} 48. Bg5 {[%clk 0:00:03]}  Re5 {[%clk 0:00:09]} 49. Bd2 {[%clk 0:00:03]}  Re6 {[%clk 0:00:09]} 50. c4 {[%clk 0:00:02]}  bxc4 {[%clk 0:00:09]} 51. Bxc4 {[%clk 0:00:02]}  Rfe7 {[%clk 0:00:09]} 52. Bxe6 {[%clk 0:00:03]}  Rxe6 {[%clk 0:00:10]} 53. Rf2 {[%clk 0:00:03]}  Re8 {[%clk 0:00:04]} 54. Rf7+ {[%clk 0:00:03]}  Kg8 {[%clk 0:00:04]} 55. h7+ {[%clk 0:00:03]}  Kxf7 {[%clk 0:00:04]} 56. h8=Q {[%clk 0:00:04]}  Bg7 {[%clk 0:00:05]} 57. Qh3 {[%clk 0:00:04]}  Bf6 {[%clk 0:00:05]} 58. Qd7+ {[%clk 0:00:03]}  Re7 {[%clk 0:00:05]} 59. Qd5+ {[%clk 0:00:04]}  Kg7 {[%clk 0:00:05]} 60. Bc3 {[%clk 0:00:05]}  Rf7 {[%clk 0:00:06]} 61. Bd4 {[%clk 0:00:03]}  Kg8 {[%clk 0:00:05]} 62. Bxf6 {[%clk 0:00:03]} 1-0


[Site "https://www.chess.com"]

[Event "Titled Tuesday Blitz January 03 Early 2023"]
[White "Aldokhin, Ivan"]
[Black "Putnam, Liam"]
[WhiteFideId "24115720"]
[BlackFideId "30938279"]
[WhiteElo "2413"]
[BlackElo "2285"]
[Result "0-1"]
[Round "07"]
[TimeControl "180+2"]
[Date "2023.01.03"]
[WhiteClock "0:00:02"]
[BlackClock "0:01:29"]

1. e4 {[%clk 0:03:00]}  c5 {[%clk 0:02:59]} 2. Nf3 {[%clk 0:03:01]}  d6 {[%clk 0:03:00]} 3. d4 {[%clk 0:03:01]}  cxd4 {[%clk 0:02:59]} 4. Nxd4 {[%clk 0:03:02]}  Nf6 {[%clk 0:03:00]} 5. Nc3 {[%clk 0:03:03]}  a6 {[%clk 0:03:00]} 6. Bc4 {[%clk 0:03:03]}  e6 {[%clk 0:03:00]} 7. Bb3 {[%clk 0:03:03]}  Nbd7 {[%clk 0:03:01]} 8. O-O {[%clk 0:03:03]}  Nc5 {[%clk 0:03:01]} 9. Re1 {[%clk 0:03:00]}  Be7 {[%clk 0:03:01]} 10. Qf3 {[%clk 0:02:59]}  O-O {[%clk 0:03:00]} 11. Bg5 {[%clk 0:02:46]}  b5 {[%clk 0:02:39]} 12. Nc6 {[%clk 0:02:33]}  Qc7 {[%clk 0:02:33]} 13. Nxe7+ {[%clk 0:02:33]}  Qxe7 {[%clk 0:02:34]} 14. e5 {[%clk 0:02:33]}  dxe5 {[%clk 0:02:27]} 15. Qxa8 {[%clk 0:02:30]}  Bb7 {[%clk 0:02:26]} 16. Qa7 {[%clk 0:02:23]}  Qc7 {[%clk 0:02:23]} 17. Be3 {[%clk 0:01:58]}  Nfd7 {[%clk 0:02:18]} 18. a4 {[%clk 0:01:04]}  Ra8 {[%clk 0:02:15]} 19. Qxa8+ {[%clk 0:01:01]}  Bxa8 {[%clk 0:02:16]} 20. axb5 {[%clk 0:01:01]}  Qb7 {[%clk 0:02:15]} 21. f3 {[%clk 0:00:56]}  axb5 {[%clk 0:02:15]} 22. Nxb5 {[%clk 0:00:52]}  Nxb3 {[%clk 0:02:09]} 23. cxb3 {[%clk 0:00:48]}  h5 {[%clk 0:02:08]} 24. Nd6 {[%clk 0:00:36]}  Qc6 {[%clk 0:02:03]} 25. Red1 {[%clk 0:00:31]}  Nf6 {[%clk 0:02:01]} 26. Rac1 {[%clk 0:00:27]}  Qa6 {[%clk 0:02:00]} 27. Kf2 {[%clk 0:00:18]}  Kh7 {[%clk 0:01:57]} 28. Nxf7 {[%clk 0:00:17]}  Qb7 {[%clk 0:01:54]} 29. Ng5+ {[%clk 0:00:15]}  Kg6 {[%clk 0:01:54]} 30. Nxe6 {[%clk 0:00:15]}  Qxb3 {[%clk 0:01:54]} 31. Nc5 {[%clk 0:00:12]}  Qxb2+ {[%clk 0:01:50]} 32. Kg1 {[%clk 0:00:12]}  Ng4 {[%clk 0:01:46]} 33. Nd3 {[%clk 0:00:10]}  Qe2 {[%clk 0:01:46]} 34. Bf2 {[%clk 0:00:08]}  Nf6 {[%clk 0:01:40]} 35. Rb1 {[%clk 0:00:03]}  Kh7 {[%clk 0:01:34]} 36. Rbc1 {[%clk 0:00:03]}  e4 {[%clk 0:01:29]} 37. Nf4 {[%clk 0:00:03]}  Qb5 {[%clk 0:01:28]} 38. fxe4 {[%clk 0:00:02]}  Bxe4 {[%clk 0:01:29]} 39. Re1 {[%clk 0:00:02]}  Qf5 {[%clk 0:01:30]} 40. Nh3 {[%clk 0:00:02]}  Qg4 {[%clk 0:01:29]} 41. g3 {[%clk 0:00:01]}  Qxh3 {[%clk 0:01:28]} 42. Rxe4 {[%clk 0:00:02]}  Nxe4 {[%clk 0:01:29]} 43. Re1 {[%clk 0:00:02]}  Ng5 {[%clk 0:01:29]} 44. Re3 {[%clk 0:00:02]}  h4 {[%clk 0:01:28]} 45. gxh4 {[%clk 0:00:02]}  Nf3+ {[%clk 0:01:29]} 0-1


[Site "https://www.chess.com"]

[Event "Titled Tuesday Blitz January 03 Early 2023"]
[White "Avila Pavas, Santiago"]
[Black "Sadykov, Ramil"]
[WhiteFideId "4437128"]
[BlackFideId "24113590"]
[WhiteElo "2522"]
[BlackElo "2345"]
[Result "1-0"]
[Round "07"]
[TimeControl "180+2"]
[Date "2023.01.03"]
[WhiteClock "0:00:44"]
[BlackClock "0:00:03"]

1. d4 {[%clk 0:03:00]}  Nf6 {[%clk 0:02:58]} 2. Nf3 {[%clk 0:03:00]}  g6 {[%clk 0:02:57]} 3. Bg5 {[%clk 0:03:00]}  Bg7 {[%clk 0:02:56]} 4. Nbd2 {[%clk 0:03:01]}  d5 {[%clk 0:02:56]} 5. e3 {[%clk 0:03:01]}  O-O {[%clk 0:02:54]} 6. Be2 {[%clk 0:03:02]}  c5 {[%clk 0:02:54]} 7. O-O {[%clk 0:03:02]}  Qb6 {[%clk 0:02:53]} 8. Rb1 {[%clk 0:02:58]}  Nc6 {[%clk 0:02:52]} 9. c3 {[%clk 0:02:57]}  Re8 {[%clk 0:02:50]} 10. b4 {[%clk 0:02:42]}  cxb4 {[%clk 0:02:28]} 11. cxb4 {[%clk 0:02:43]}  a6 {[%clk 0:02:26]} 12. b5 {[%clk 0:02:17]}  axb5 {[%clk 0:02:25]} 13. Rxb5 {[%clk 0:02:18]}  Qa7 {[%clk 0:02:13]} 14. Bxf6 {[%clk 0:02:17]}  Bxf6 {[%clk 0:02:12]} 15. Rxd5 {[%clk 0:02:18]}  Qxa2 {[%clk 0:02:10]} 16. Bc4 {[%clk 0:02:15]}  Qa3 {[%clk 0:02:07]} 17. Ne4 {[%clk 0:02:08]}  Bg7 {[%clk 0:01:54]} 18. Neg5 {[%clk 0:02:02]}  e6 {[%clk 0:01:48]} 19. Rb5 {[%clk 0:02:02]}  Na5 {[%clk 0:01:27]} 20. Be2 {[%clk 0:02:01]}  Bd7 {[%clk 0:01:26]} 21. Rb1 {[%clk 0:01:54]}  Bc6 {[%clk 0:01:00]} 22. Bb5 {[%clk 0:01:38]}  Qe7 {[%clk 0:00:26]} 23. Bxc6 {[%clk 0:01:34]}  Nxc6 {[%clk 0:00:27]} 24. Qb3 {[%clk 0:01:31]}  Rab8 {[%clk 0:00:24]} 25. Rfc1 {[%clk 0:01:31]}  h6 {[%clk 0:00:21]} 26. Ne4 {[%clk 0:01:31]}  Kh7 {[%clk 0:00:18]} 27. Nc5 {[%clk 0:01:24]}  e5 {[%clk 0:00:14]} 28. d5 {[%clk 0:01:19]}  Na5 {[%clk 0:00:14]} 29. Qb5 {[%clk 0:01:10]}  b6 {[%clk 0:00:12]} 30. Nd7 {[%clk 0:01:11]}  Rbd8 {[%clk 0:00:12]} 31. Nxb6 {[%clk 0:01:11]}  Nb7 {[%clk 0:00:12]} 32. Nc4 {[%clk 0:01:03]}  Nd6 {[%clk 0:00:08]} 33. Nxd6 {[%clk 0:01:03]}  Qxd6 {[%clk 0:00:08]} 34. e4 {[%clk 0:01:02]}  f5 {[%clk 0:00:08]} 35. Rc6 {[%clk 0:01:02]}  Qb8 {[%clk 0:00:05]} 36. Qd3 {[%clk 0:00:54]}  Qa7 {[%clk 0:00:03]} 37. Rbc1 {[%clk 0:00:49]}  fxe4 {[%clk 0:00:03]} 38. Qxe4 {[%clk 0:00:49]}  Qa5 {[%clk 0:00:03]} 39. Qxg6+ {[%clk 0:00:49]}  Kh8 {[%clk 0:00:03]} 40. Rc7 {[%clk 0:00:46]}  Rg8 {[%clk 0:00:03]} 41. Nxe5 {[%clk 0:00:44]} 1-0


[Site "https://www.chess.com"]

[Event "Titled Tuesday Blitz January 03 Early 2023"]
[White "Orozbaev, Eldiar"]
[Black "Bettalli, Francesco"]
[WhiteFideId "13802240"]
[BlackFideId "2816453"]
[WhiteElo "2235"]
[BlackElo "2252"]
[Result "1-0"]
[Round "07"]
[TimeControl "180+2"]
[Date "2023.01.03"]
[WhiteClock "0:00:12"]
[BlackClock "0:00:49"]

1. e4 {[%clk 0:02:48]}  g6 {[%clk 0:02:58]} 2. d4 {[%clk 0:02:48]}  Bg7 {[%clk 0:02:58]} 3. Nc3 {[%clk 0:02:49]}  c6 {[%clk 0:02:57]} 4. Be3 {[%clk 0:02:49]}  d5 {[%clk 0:02:57]} 5. f3 {[%clk 0:02:49]}  e6 {[%clk 0:02:53]} 6. Qd2 {[%clk 0:02:48]}  Ne7 {[%clk 0:02:53]} 7. O-O-O {[%clk 0:02:46]}  O-O {[%clk 0:02:52]} 8. h4 {[%clk 0:02:46]}  h5 {[%clk 0:02:51]} 9. g4 {[%clk 0:02:46]}  dxe4 {[%clk 0:02:50]} 10. gxh5 {[%clk 0:02:45]}  Qa5 {[%clk 0:02:49]} 11. hxg6 {[%clk 0:02:43]}  fxg6 {[%clk 0:02:50]} 12. fxe4 {[%clk 0:02:42]}  Nd7 {[%clk 0:02:48]} 13. Nh3 {[%clk 0:02:41]}  e5 {[%clk 0:02:43]} 14. Bc4+ {[%clk 0:02:40]}  Kh8 {[%clk 0:02:42]} 15. h5 {[%clk 0:02:40]}  g5 {[%clk 0:02:41]} 16. h6 {[%clk 0:02:40]}  Bf6 {[%clk 0:02:40]} 17. Bxg5 {[%clk 0:02:41]}  exd4 {[%clk 0:02:39]} 18. Bxf6+ {[%clk 0:02:40]}  Nxf6 {[%clk 0:02:40]} 19. Qxd4 {[%clk 0:02:39]}  Bg4 {[%clk 0:02:38]} 20. e5 {[%clk 0:02:32]}  Rad8 {[%clk 0:02:33]} 21. Qe3 {[%clk 0:01:51]}  Rxd1+ {[%clk 0:02:15]} 22. Rxd1 {[%clk 0:01:46]}  Nf5 {[%clk 0:02:06]} 23. Qf4 {[%clk 0:01:35]}  Bxh3 {[%clk 0:02:04]} 24. exf6 {[%clk 0:01:34]}  Qc5 {[%clk 0:02:00]} 25. f7 {[%clk 0:01:25]}  Qe3+ {[%clk 0:01:55]} 26. Qxe3 {[%clk 0:01:20]}  Nxe3 {[%clk 0:01:56]} 27. Rd3 {[%clk 0:00:52]}  Nxc4 {[%clk 0:01:55]} 28. Rxh3 {[%clk 0:00:53]}  Rxf7 {[%clk 0:01:55]} 29. Rh1 {[%clk 0:00:54]}  Kh7 {[%clk 0:01:55]} 30. Ne4 {[%clk 0:00:54]}  Rf5 {[%clk 0:01:51]} 31. b3 {[%clk 0:00:53]}  Ne3 {[%clk 0:01:49]} 32. Nd6 {[%clk 0:00:48]}  Rf2 {[%clk 0:01:43]} 33. Nxb7 {[%clk 0:00:46]}  Nxc2 {[%clk 0:01:40]} 34. Nc5 {[%clk 0:00:39]}  Nb4 {[%clk 0:01:32]} 35. Kb1 {[%clk 0:00:37]}  Nxa2 {[%clk 0:01:28]} 36. Ne4 {[%clk 0:00:38]}  Rg2 {[%clk 0:01:26]} 37. Nf6+ {[%clk 0:00:36]}  Kh8 {[%clk 0:01:26]} 38. h7 {[%clk 0:00:36]}  Nc3+ {[%clk 0:01:24]} 39. Kc1 {[%clk 0:00:37]}  Re2 {[%clk 0:01:08]} 40. Rh3 {[%clk 0:00:34]}  Nd5 {[%clk 0:01:02]} 41. Ng8 {[%clk 0:00:31]}  Re3 {[%clk 0:00:53]} 42. Rxe3 {[%clk 0:00:16]}  Nxe3 {[%clk 0:00:53]} 43. Nf6 {[%clk 0:00:17]}  Nd5 {[%clk 0:00:51]} 44. Nxd5 {[%clk 0:00:13]}  cxd5 {[%clk 0:00:52]} 45. Kd2 {[%clk 0:00:14]}  Kxh7 {[%clk 0:00:53]} 46. Kd3 {[%clk 0:00:15]}  Kg7 {[%clk 0:00:53]} 47. Kd4 {[%clk 0:00:16]}  Kf7 {[%clk 0:00:53]} 48. Kxd5 {[%clk 0:00:17]}  Ke7 {[%clk 0:00:48]} 49. Kc6 {[%clk 0:00:17]}  Kd8 {[%clk 0:00:46]} 50. Kb7 {[%clk 0:00:13]}  Kd7 {[%clk 0:00:47]} 51. Kxa7 {[%clk 0:00:12]}  Kc6 {[%clk 0:00:47]} 52. Ka6 {[%clk 0:00:13]}  Kc5 {[%clk 0:00:47]} 53. Ka5 {[%clk 0:00:13]}  Kc6 {[%clk 0:00:48]} 54. b4 {[%clk 0:00:14]}  Kb7 {[%clk 0:00:43]} 55. Kb5 {[%clk 0:00:13]}  Kc7 {[%clk 0:00:43]} 56. Ka6 {[%clk 0:00:13]}  Kb8 {[%clk 0:00:44]} 57. Kb6 {[%clk 0:00:13]}  Ka8 {[%clk 0:00:44]} 58. Kc7 {[%clk 0:00:10]}  Ka7 {[%clk 0:00:45]} 59. b5 {[%clk 0:00:10]}  Ka8 {[%clk 0:00:46]} 60. Kb6 {[%clk 0:00:07]}  Kb8 {[%clk 0:00:46]} 61. Kc6 {[%clk 0:00:08]}  Kc8 {[%clk 0:00:47]} 62. b6 {[%clk 0:00:08]}  Kb8 {[%clk 0:00:47]} 63. b7 {[%clk 0:00:09]}  Ka7 {[%clk 0:00:48]} 64. Kc7 {[%clk 0:00:10]}  Ka6 {[%clk 0:00:49]} 65. b8=Q {[%clk 0:00:11]}  Ka5 {[%clk 0:00:49]} 66. Qb3 {[%clk 0:00:12]} 1-0


[Site "https://www.chess.com"]

[Event "Titled Tuesday Blitz January 03 Early 2023"]
[White "Antonica, Dragos-Andrei"]
[Black "Ansh M Shah"]
[WhiteFideId "1246372"]
[BlackFideId "25033379"]
[WhiteElo "2373"]
[BlackElo "2171"]
[Result "1-0"]
[Round "07"]
[TimeControl "180+2"]
[Date "2023.01.03"]
[WhiteClock "0:00:51"]
[BlackClock "0:00:47"]

1. b3 {[%clk 0:03:00]}  e5 {[%clk 0:02:58]} 2. Bb2 {[%clk 0:03:00]}  Nc6 {[%clk 0:02:58]} 3. c4 {[%clk 0:03:01]}  d6 {[%clk 0:02:59]} 4. e3 {[%clk 0:03:00]}  g6 {[%clk 0:02:59]} 5. d4 {[%clk 0:02:57]}  exd4 {[%clk 0:02:58]} 6. Nf3 {[%clk 0:02:58]}  Bg7 {[%clk 0:02:58]} 7. Nxd4 {[%clk 0:02:58]}  Nxd4 {[%clk 0:02:58]} 8. Bxd4 {[%clk 0:02:59]}  Bxd4 {[%clk 0:02:56]} 9. Qxd4 {[%clk 0:03:00]}  Qf6 {[%clk 0:02:56]} 10. Nc3 {[%clk 0:02:59]}  Qxd4 {[%clk 0:02:53]} 11. exd4 {[%clk 0:03:00]}  c6 {[%clk 0:02:52]} 12. Kd2 {[%clk 0:03:00]}  Nf6 {[%clk 0:02:52]} 13. Bd3 {[%clk 0:02:59]}  Be6 {[%clk 0:02:48]} 14. b4 {[%clk 0:02:56]}  a5 {[%clk 0:02:44]} 15. b5 {[%clk 0:02:53]}  Kd7 {[%clk 0:02:44]} 16. a4 {[%clk 0:02:53]}  Rhe8 {[%clk 0:02:41]} 17. f3 {[%clk 0:02:50]}  Nh5 {[%clk 0:02:35]} 18. g3 {[%clk 0:02:51]}  Bh3 {[%clk 0:02:35]} 19. Rhg1 {[%clk 0:02:38]}  Bf5 {[%clk 0:02:13]} 20. Bxf5+ {[%clk 0:02:24]}  gxf5 {[%clk 0:02:13]} 21. g4 {[%clk 0:02:11]}  fxg4 {[%clk 0:02:13]} 22. fxg4 {[%clk 0:02:11]}  Ng7 {[%clk 0:02:12]} 23. Raf1 {[%clk 0:02:05]}  Re7 {[%clk 0:02:12]} 24. Rf6 {[%clk 0:02:04]}  Rf8 {[%clk 0:02:03]} 25. Kd3 {[%clk 0:01:57]}  Ne8 {[%clk 0:02:01]} 26. Rh6 {[%clk 0:01:56]}  f6 {[%clk 0:02:01]} 27. Ne4 {[%clk 0:01:53]}  Rg7 {[%clk 0:01:42]} 28. Ng3 {[%clk 0:01:34]}  Rff7 {[%clk 0:01:40]} 29. Nf5 {[%clk 0:01:32]}  Rg6 {[%clk 0:01:40]} 30. Rh3 {[%clk 0:01:26]}  Ng7 {[%clk 0:01:36]} 31. Rxh7 {[%clk 0:01:25]}  Ke6 {[%clk 0:01:30]} 32. Re1+ {[%clk 0:01:21]}  Kd7 {[%clk 0:01:26]} 33. h3 {[%clk 0:01:19]}  Kd8 {[%clk 0:01:10]} 34. Nxd6 {[%clk 0:01:09]}  Rd7 {[%clk 0:01:10]} 35. c5 {[%clk 0:00:59]}  cxb5 {[%clk 0:00:48]} 36. axb5 {[%clk 0:00:55]}  b6 {[%clk 0:00:47]} 37. Rh8+ {[%clk 0:00:51]} 1-0


[Site "https://www.chess.com"]